[Event "Titled Tuesday Blitz April 4 Late 2023"]
[White "marik_spb"]
[Black "Araujo, Everson De Moura"]
[BlackFideId "22737197"]
[WhiteElo "2400"]
[BlackElo "2035"]
[Result "1-0"]
[Round "04"]
[TimeControl "180+2"]
[Date "2023.04.04"]
[WhiteClock "0:01:34"]
[BlackClock "0:00:50"]

1. d4 {[%clk 0:02:56]}  d5 {[%clk 0:03:00]} 2. c4 {[%clk 0:02:56]}  e6 {[%clk 0:02:59]} 3. Nf3 {[%clk 0:02:57]}  Nf6 {[%clk 0:03:00]} 4. g3 {[%clk 0:02:57]}  Be7 {[%clk 0:02:59]} 5. Bg2 {[%clk 0:02:58]}  O-O {[%clk 0:03:00]} 6. O-O {[%clk 0:02:59]}  dxc4 {[%clk 0:03:00]} 7. Ne5 {[%clk 0:02:56]}  Qd6 {[%clk 0:02:59]} 8. Nxc4 {[%clk 0:02:56]}  Qa6 {[%clk 0:03:00]} 9. Ne5 {[%clk 0:02:54]}  Rd8 {[%clk 0:02:58]} 10. Nc3 {[%clk 0:02:49]}  c5 {[%clk 0:02:58]} 11. e3 {[%clk 0:02:35]}  Nc6 {[%clk 0:02:55]} 12. Nxc6 {[%clk 0:02:32]}  bxc6 {[%clk 0:02:56]} 13. Qf3 {[%clk 0:02:28]}  cxd4 {[%clk 0:02:33]} 14. exd4 {[%clk 0:02:29]}  Rxd4 {[%clk 0:02:31]} 15. Qxc6 {[%clk 0:02:27]}  Qxc6 {[%clk 0:02:27]} 16. Bxc6 {[%clk 0:02:28]}  Rb8 {[%clk 0:02:25]} 17. Be3 {[%clk 0:02:22]}  Rc4 {[%clk 0:02:18]} 18. Bg2 {[%clk 0:02:15]}  Rxb2 {[%clk 0:02:16]} 19. Rfc1 {[%clk 0:02:15]}  Rcb4 {[%clk 0:02:06]} 20. Nd1 {[%clk 0:01:59]}  Ba6 {[%clk 0:01:33]} 21. Nxb2 {[%clk 0:01:58]}  Rxb2 {[%clk 0:01:34]} 22. Bxa7 {[%clk 0:01:57]}  h5 {[%clk 0:01:22]} 23. a4 {[%clk 0:01:45]}  Bd3 {[%clk 0:01:02]} 24. a5 {[%clk 0:01:42]}  Be4 {[%clk 0:00:59]} 25. Bd4 {[%clk 0:01:39]}  Rd2 {[%clk 0:00:57]} 26. Bxf6 {[%clk 0:01:37]}  Bxf6 {[%clk 0:00:50]} 27. Bxe4 {[%clk 0:01:37]}  Bxa1 {[%clk 0:00:50]} 28. Rc8+ {[%clk 0:01:34]} 1-0


[Site "https://www.chess.com"]

[Event "Titled Tuesday Blitz April 4 Late 2023"]
[White "Bongo Akanga Ndjila, Barthelemy"]
[Black "Rian, Kapriaga"]
[WhiteFideId "10609431"]
[BlackFideId "7103263"]
[WhiteElo "1768"]
[BlackElo "2322"]
[Result "0-1"]
[Round "04"]
[TimeControl "180+2"]
[Date "2023.04.04"]
[WhiteClock "0:00:06"]
[BlackClock "0:00:16"]

1. d4 {[%clk 0:02:50]}  Nf6 {[%clk 0:02:39]} 2. Nf3 {[%clk 0:02:48]}  d5 {[%clk 0:02:37]} 3. Bg5 {[%clk 0:02:47]}  e6 {[%clk 0:02:27]} 4. c4 {[%clk 0:02:42]}  Be7 {[%clk 0:02:26]} 5. Nc3 {[%clk 0:02:38]}  h6 {[%clk 0:02:25]} 6. Bxf6 {[%clk 0:02:37]}  Bxf6 {[%clk 0:02:24]} 7. e3 {[%clk 0:02:38]}  O-O {[%clk 0:02:23]} 8. cxd5 {[%clk 0:02:32]}  exd5 {[%clk 0:02:23]} 9. h3 {[%clk 0:02:29]}  Bf5 {[%clk 0:02:16]} 10. Rc1 {[%clk 0:02:24]}  Re8 {[%clk 0:02:00]} 11. Bd3 {[%clk 0:02:23]}  Bxd3 {[%clk 0:01:58]} 12. Qxd3 {[%clk 0:02:22]}  c6 {[%clk 0:01:55]} 13. O-O {[%clk 0:02:21]}  Nd7 {[%clk 0:01:53]} 14. b4 {[%clk 0:02:19]}  a6 {[%clk 0:01:52]} 15. a4 {[%clk 0:02:18]}  b5 {[%clk 0:01:46]} 16. a5 {[%clk 0:02:12]}  Be7 {[%clk 0:01:33]} 17. Rb1 {[%clk 0:02:08]}  Bd6 {[%clk 0:01:12]} 18. Rfc1 {[%clk 0:02:02]}  Nf6 {[%clk 0:01:09]} 19. Ne2 {[%clk 0:01:57]}  Rc8 {[%clk 0:01:06]} 20. Ng3 {[%clk 0:01:50]}  g6 {[%clk 0:01:04]} 21. Ne2 {[%clk 0:01:41]}  Qe7 {[%clk 0:01:03]} 22. Nh4 {[%clk 0:01:28]}  Ne4 {[%clk 0:00:58]} 23. Nf3 {[%clk 0:01:17]}  Bxb4 {[%clk 0:00:33]} 24. Ne5 {[%clk 0:01:13]}  Bxa5 {[%clk 0:00:30]} 25. Nxc6 {[%clk 0:01:09]}  Qc7 {[%clk 0:00:23]} 26. Ne5 {[%clk 0:01:00]}  Qd6 {[%clk 0:00:21]} 27. Ra1 {[%clk 0:00:55]}  Bc7 {[%clk 0:00:20]} 28. Rc6 {[%clk 0:00:53]}  Qe7 {[%clk 0:00:19]} 29. f3 {[%clk 0:00:46]}  Bxe5 {[%clk 0:00:19]} 30. Rxc8 {[%clk 0:00:46]}  Rxc8 {[%clk 0:00:18]} 31. fxe4 {[%clk 0:00:41]}  dxe4 {[%clk 0:00:17]} 32. Qb3 {[%clk 0:00:26]}  Bb8 {[%clk 0:00:16]} 33. Rxa6 {[%clk 0:00:22]}  Qg5 {[%clk 0:00:16]} 34. Kf1 {[%clk 0:00:06]}  b4 {[%clk 0:00:16]} 0-1


[Site "https://www.chess.com"]

[Event "Titled Tuesday Blitz April 4 Late 2023"]
[White "Zaloznyy, Mike"]
[Black "Matute Escobar, Roxanny"]
[WhiteFideId "2023075"]
[BlackFideId "3926028"]
[WhiteElo "2073"]
[BlackElo "1844"]
[Result "1-0"]
[Round "04"]
[TimeControl "180+2"]
[Date "2023.04.04"]
[WhiteClock "0:00:11"]
[BlackClock "0:00:12"]

1. Nf3 {[%clk 0:02:54]}  Nf6 {[%clk 0:02:59]} 2. g3 {[%clk 0:02:54]}  g6 {[%clk 0:02:59]} 3. Bg2 {[%clk 0:02:54]}  Bg7 {[%clk 0:03:00]} 4. b3 {[%clk 0:02:55]}  O-O {[%clk 0:02:59]} 5. Bb2 {[%clk 0:02:55]}  c5 {[%clk 0:02:59]} 6. c4 {[%clk 0:02:55]}  Nc6 {[%clk 0:02:59]} 7. O-O {[%clk 0:02:54]}  d6 {[%clk 0:02:57]} 8. d4 {[%clk 0:02:54]}  cxd4 {[%clk 0:02:55]} 9. Nxd4 {[%clk 0:02:54]}  Nxd4 {[%clk 0:02:50]} 10. Qxd4 {[%clk 0:02:44]}  Rb8 {[%clk 0:02:49]} 11. Nc3 {[%clk 0:02:25]}  a6 {[%clk 0:02:44]} 12. Rad1 {[%clk 0:02:25]}  b5 {[%clk 0:02:36]} 13. cxb5 {[%clk 0:02:24]}  axb5 {[%clk 0:02:37]} 14. Qh4 {[%clk 0:02:19]}  Bf5 {[%clk 0:02:10]} 15. Nd5 {[%clk 0:02:02]}  Nxd5 {[%clk 0:02:02]} 16. Bxg7 {[%clk 0:02:03]}  Kxg7 {[%clk 0:02:02]} 17. Rxd5 {[%clk 0:02:03]}  Qd7 {[%clk 0:01:42]} 18. e4 {[%clk 0:01:53]}  Be6 {[%clk 0:01:38]} 19. Rd2 {[%clk 0:01:53]}  Rfc8 {[%clk 0:01:34]} 20. Rfd1 {[%clk 0:01:53]}  Qa7 {[%clk 0:01:29]} 21. Qf4 {[%clk 0:01:45]}  b4 {[%clk 0:01:18]} 22. h4 {[%clk 0:01:45]}  h5 {[%clk 0:01:18]} 23. e5 {[%clk 0:01:44]}  dxe5 {[%clk 0:01:15]} 24. Qxe5+ {[%clk 0:01:45]}  Kh7 {[%clk 0:01:15]} 25. Bd5 {[%clk 0:01:40]}  Bg4 {[%clk 0:01:02]} 26. Re1 {[%clk 0:01:35]}  e6 {[%clk 0:01:02]} 27. Bc4 {[%clk 0:01:29]}  Rd8 {[%clk 0:01:01]} 28. Rxd8 {[%clk 0:01:20]}  Rxd8 {[%clk 0:01:01]} 29. Qf6 {[%clk 0:01:20]}  Rd2 {[%clk 0:00:58]} 30. Bxe6 {[%clk 0:01:11]}  Bxe6 {[%clk 0:00:56]} 31. g4 {[%clk 0:00:58]}  Bxg4 {[%clk 0:00:51]} 32. Re7 {[%clk 0:00:54]}  Rd1+ {[%clk 0:00:48]} 33. Kg2 {[%clk 0:00:21]}  Qa8+ {[%clk 0:00:43]} 34. f3 {[%clk 0:00:21]}  Bxf3+ {[%clk 0:00:33]} 35. Kf2 {[%clk 0:00:14]}  Rd2+ {[%clk 0:00:29]} 36. Kf1 {[%clk 0:00:09]}  Bg2+ {[%clk 0:00:14]} 37. Kg1 {[%clk 0:00:09]}  Bd5 {[%clk 0:00:14]} 38. Rxf7+ {[%clk 0:00:07]}  Bxf7 {[%clk 0:00:14]} 39. Qxf7+ {[%clk 0:00:08]}  Kh8 {[%clk 0:00:14]} 40. Qf6+ {[%clk 0:00:09]}  Kh7 {[%clk 0:00:14]} 41. Qf7+ {[%clk 0:00:09]}  Kh8 {[%clk 0:00:14]} 42. Qf6+ {[%clk 0:00:09]}  Kg8 {[%clk 0:00:15]} 43. Qxg6+ {[%clk 0:00:09]}  Kf8 {[%clk 0:00:15]} 44. Qh6+ {[%clk 0:00:10]}  Ke8 {[%clk 0:00:14]} 45. Qxd2 {[%clk 0:00:11]}  Qa7+ {[%clk 0:00:14]} 46. Qf2 {[%clk 0:00:10]}  Qa6 {[%clk 0:00:12]} 47. Kg2 {[%clk 0:00:08]}  Qg6+ {[%clk 0:00:11]} 48. Qg3 {[%clk 0:00:08]}  Qc2+ {[%clk 0:00:11]} 49. Qf2 {[%clk 0:00:08]}  Qg6+ {[%clk 0:00:11]} 50. Kf1 {[%clk 0:00:08]}  Qa6+ {[%clk 0:00:10]} 51. Qe2+ {[%clk 0:00:09]}  Qxe2+ {[%clk 0:00:10]} 52. Kxe2 {[%clk 0:00:09]}  Ke7 {[%clk 0:00:10]} 53. Kd3 {[%clk 0:00:10]}  Kd6 {[%clk 0:00:10]} 54. Kc4 {[%clk 0:00:11]}  Kc6 {[%clk 0:00:10]} 55. Kxb4 {[%clk 0:00:12]}  Kb6 {[%clk 0:00:11]} 56. a4 {[%clk 0:00:11]}  Ka6 {[%clk 0:00:12]} 57. a5 {[%clk 0:00:11]} 1-0


[Site "https://www.chess.com"]

[Event "Titled Tuesday Blitz April 4 Late 2023"]
[White "Jiganchine, Roman"]
[Black "Winkels, Marcel"]
[WhiteFideId "2603667"]
[BlackFideId "1003887"]
[WhiteElo "2302"]
[BlackElo "1900"]
[Result "1/2-1/2"]
[Round "04"]
[TimeControl "180+2"]
[Date "2023.04.04"]
[WhiteClock "0:00:09"]
[BlackClock "0:00:03"]

1. e4 {[%clk 0:03:00]}  c5 {[%clk 0:02:56]} 2. Nf3 {[%clk 0:03:00]}  e6 {[%clk 0:02:56]} 3. g3 {[%clk 0:02:59]}  Nc6 {[%clk 0:02:54]} 4. Bg2 {[%clk 0:02:59]}  g6 {[%clk 0:02:55]} 5. O-O {[%clk 0:02:58]}  Bg7 {[%clk 0:02:55]} 6. c3 {[%clk 0:02:48]}  Nge7 {[%clk 0:02:54]} 7. d4 {[%clk 0:02:48]}  cxd4 {[%clk 0:02:53]} 8. cxd4 {[%clk 0:02:47]}  d5 {[%clk 0:02:54]} 9. exd5 {[%clk 0:02:31]}  exd5 {[%clk 0:02:45]} 10. Nc3 {[%clk 0:02:20]}  O-O {[%clk 0:02:44]} 11. h3 {[%clk 0:02:17]}  h6 {[%clk 0:02:43]} 12. Bf4 {[%clk 0:02:13]}  Be6 {[%clk 0:02:33]} 13. Re1 {[%clk 0:02:05]}  Nf5 {[%clk 0:02:31]} 14. Ne5 {[%clk 0:01:52]}  Nfxd4 {[%clk 0:02:22]} 15. Nxc6 {[%clk 0:01:33]}  Nxc6 {[%clk 0:02:21]} 16. Nxd5 {[%clk 0:01:29]}  Rc8 {[%clk 0:02:02]} 17. Nc7 {[%clk 0:01:11]}  Qxd1 {[%clk 0:01:24]} 18. Raxd1 {[%clk 0:01:09]}  Bxa2 {[%clk 0:01:18]} 19. Ra1 {[%clk 0:00:49]}  Bc4 {[%clk 0:01:16]} 20. Bxc6 {[%clk 0:00:40]}  bxc6 {[%clk 0:01:15]} 21. Rxa7 {[%clk 0:00:40]}  g5 {[%clk 0:01:02]} 22. Be5 {[%clk 0:00:31]}  Bxe5 {[%clk 0:00:44]} 23. Rxe5 {[%clk 0:00:32]}  Rb8 {[%clk 0:00:44]} 24. Rc5 {[%clk 0:00:28]}  Be2 {[%clk 0:00:38]} 25. Rc2 {[%clk 0:00:20]}  Bf3 {[%clk 0:00:36]} 26. g4 {[%clk 0:00:19]}  Rfd8 {[%clk 0:00:34]} 27. Kh2 {[%clk 0:00:19]}  Rd7 {[%clk 0:00:26]} 28. Kg3 {[%clk 0:00:15]}  Bh1 {[%clk 0:00:23]} 29. Kh2 {[%clk 0:00:08]}  Be4 {[%clk 0:00:21]} 30. Re2 {[%clk 0:00:08]}  Bg6 {[%clk 0:00:17]} 31. Nb5 {[%clk 0:00:06]}  Rxa7 {[%clk 0:00:10]} 32. Nxa7 {[%clk 0:00:06]}  c5 {[%clk 0:00:09]} 33. Nc6 {[%clk 0:00:06]}  Rb7 {[%clk 0:00:08]} 34. Ne7+ {[%clk 0:00:06]}  Kg7 {[%clk 0:00:07]} 35. Nxg6 {[%clk 0:00:07]}  Kxg6 {[%clk 0:00:06]} 36. Rc2 {[%clk 0:00:07]}  Rb5 {[%clk 0:00:06]} 37. Kg2 {[%clk 0:00:07]}  Kf6 {[%clk 0:00:04]} 38. Re2 {[%clk 0:00:07]}  Rb3 {[%clk 0:00:03]} 39. f3 {[%clk 0:00:07]}  c4 {[%clk 0:00:03]} 40. Kg3 {[%clk 0:00:07]}  c3 {[%clk 0:00:04]} 41. bxc3 {[%clk 0:00:07]}  Rxc3 {[%clk 0:00:04]} 42. Ra2 {[%clk 0:00:07]}  Rd3 {[%clk 0:00:04]} 43. Ra6+ {[%clk 0:00:07]}  Kg7 {[%clk 0:00:05]} 44. Rb6 {[%clk 0:00:08]}  Ra3 {[%clk 0:00:04]} 45. Rc6 {[%clk 0:00:08]}  Rd3 {[%clk 0:00:04]} 46. Rb6 {[%clk 0:00:08]}  Rc3 {[%clk 0:00:04]} 47. Ra6 {[%clk 0:00:08]}  Rd3 {[%clk 0:00:03]} 48. Rb6 {[%clk 0:00:09]} 1/2-1/2


[Site "https://www.chess.com"]

[Event "Titled Tuesday Blitz April 4 Late 2023"]
[White "Pirvulescu, Ekaterina"]
[Black "Fajdetic, Hrvoje"]
[WhiteFideId "13506374"]
[BlackFideId "14501945"]
[WhiteElo "2006"]
[BlackElo "2185"]
[Result "1-0"]
[Round "04"]
[TimeControl "180+2"]
[Date "2023.04.04"]
[WhiteClock "0:00:08"]
[BlackClock "0:00:01"]

1. c4 {[%clk 0:02:59]}  d6 {[%clk 0:02:55]} 2. Nf3 {[%clk 0:02:59]}  Nd7 {[%clk 0:02:55]} 3. Nc3 {[%clk 0:02:59]}  e5 {[%clk 0:02:55]} 4. d3 {[%clk 0:02:58]}  f5 {[%clk 0:02:52]} 5. g3 {[%clk 0:02:59]}  Ngf6 {[%clk 0:02:53]} 6. Bg2 {[%clk 0:02:59]}  Be7 {[%clk 0:02:53]} 7. O-O {[%clk 0:02:59]}  O-O {[%clk 0:02:54]} 8. h3 {[%clk 0:02:56]}  Qe8 {[%clk 0:02:54]} 9. Rb1 {[%clk 0:02:56]}  a5 {[%clk 0:02:53]} 10. a3 {[%clk 0:02:56]}  Qh5 {[%clk 0:02:53]} 11. Nh2 {[%clk 0:02:53]}  Nc5 {[%clk 0:02:41]} 12. Nd5 {[%clk 0:02:52]}  Bd8 {[%clk 0:02:39]} 13. b4 {[%clk 0:02:46]}  axb4 {[%clk 0:02:39]} 14. axb4 {[%clk 0:02:47]}  Ne6 {[%clk 0:02:38]} 15. b5 {[%clk 0:02:28]}  Nd4 {[%clk 0:01:49]} 16. e3 {[%clk 0:02:12]}  Ne2+ {[%clk 0:01:34]} 17. Kh1 {[%clk 0:02:11]}  Ra5 {[%clk 0:01:17]} 18. Nxf6+ {[%clk 0:02:03]}  Bxf6 {[%clk 0:01:14]} 19. g4 {[%clk 0:01:40]}  fxg4 {[%clk 0:01:07]} 20. Qxe2 {[%clk 0:01:40]}  Bh4 {[%clk 0:00:51]} 21. hxg4 {[%clk 0:01:12]}  Qg6 {[%clk 0:00:41]} 22. Kg1 {[%clk 0:01:10]}  h6 {[%clk 0:00:13]} 23. e4 {[%clk 0:00:26]}  Kh8 {[%clk 0:00:12]} 24. Be3 {[%clk 0:00:27]}  Bg5 {[%clk 0:00:11]} 25. Ra1 {[%clk 0:00:21]}  Rxa1 {[%clk 0:00:10]} 26. Rxa1 {[%clk 0:00:22]}  Bxe3 {[%clk 0:00:09]} 27. fxe3 {[%clk 0:00:19]}  Kh7 {[%clk 0:00:06]} 28. Rf1 {[%clk 0:00:19]}  Rxf1+ {[%clk 0:00:05]} 29. Kxf1 {[%clk 0:00:19]}  Bd7 {[%clk 0:00:05]} 30. Kg1 {[%clk 0:00:19]}  c6 {[%clk 0:00:05]} 31. bxc6 {[%clk 0:00:18]}  bxc6 {[%clk 0:00:06]} 32. Qf3 {[%clk 0:00:18]}  Qg5 {[%clk 0:00:05]} 33. Kf2 {[%clk 0:00:18]}  Be6 {[%clk 0:00:05]} 34. Bh3 {[%clk 0:00:16]}  Qh4+ {[%clk 0:00:04]} 35. Qg3 {[%clk 0:00:16]}  Qf6+ {[%clk 0:00:04]} 36. Nf3 {[%clk 0:00:15]}  Qd8 {[%clk 0:00:03]} 37. Qh4 {[%clk 0:00:15]}  Qa5 {[%clk 0:00:03]} 38. Qe7 {[%clk 0:00:13]}  Qa2+ {[%clk 0:00:02]} 39. Kg3 {[%clk 0:00:12]}  Bg8 {[%clk 0:00:02]} 40. Qxd6 {[%clk 0:00:11]}  Qa1 {[%clk 0:00:02]} 41. Qxe5 {[%clk 0:00:10]}  Qc1 {[%clk 0:00:02]} 42. Qf5+ {[%clk 0:00:10]}  Kh8 {[%clk 0:00:02]} 43. Kf4 {[%clk 0:00:08]}  c5 {[%clk 0:00:01]} 44. Ne5 {[%clk 0:00:08]} 1-0


[Site "https://www.chess.com"]

[Event "Titled Tuesday Blitz April 4 Late 2023"]
[White "Erigaisi Arjun"]
[Black "Martinez Alcantara, Jose Eduardo"]
[WhiteFideId "35009192"]
[BlackFideId "3805662"]
[WhiteElo "2737"]
[BlackElo "2711"]
[Result "1-0"]
[Round "05"]
[TimeControl "180+2"]
[Date "2023.04.04"]
[WhiteClock "0:01:00"]
[BlackClock "0:00:58"]

1. c4 {[%clk 0:02:59]}  c5 {[%clk 0:02:58]} 2. Nc3 {[%clk 0:02:59]}  Nc6 {[%clk 0:02:59]} 3. g3 {[%clk 0:02:59]}  g6 {[%clk 0:02:59]} 4. Bg2 {[%clk 0:03:00]}  Bg7 {[%clk 0:03:00]} 5. d3 {[%clk 0:03:00]}  d6 {[%clk 0:03:01]} 6. Qd2 {[%clk 0:02:57]}  e6 {[%clk 0:03:00]} 7. b3 {[%clk 0:02:57]}  Nge7 {[%clk 0:03:01]} 8. Bb2 {[%clk 0:02:58]}  O-O {[%clk 0:02:59]} 9. e3 {[%clk 0:02:57]}  d5 {[%clk 0:02:57]} 10. Nge2 {[%clk 0:02:57]}  b6 {[%clk 0:02:54]} 11. h4 {[%clk 0:02:54]}  Bb7 {[%clk 0:02:39]} 12. h5 {[%clk 0:02:52]}  Qd7 {[%clk 0:02:36]} 13. O-O-O {[%clk 0:02:49]}  d4 {[%clk 0:02:33]} 14. exd4 {[%clk 0:02:37]}  cxd4 {[%clk 0:02:34]} 15. Ne4 {[%clk 0:02:34]}  e5 {[%clk 0:02:34]} 16. hxg6 {[%clk 0:02:29]}  fxg6 {[%clk 0:02:30]} 17. Bh3 {[%clk 0:02:29]}  Nf5 {[%clk 0:02:29]} 18. Kb1 {[%clk 0:02:14]}  Nce7 {[%clk 0:02:19]} 19. f4 {[%clk 0:02:12]}  Qc7 {[%clk 0:02:04]} 20. Rh2 {[%clk 0:02:09]}  Rae8 {[%clk 0:01:48]} 21. Ng5 {[%clk 0:02:06]}  Qd6 {[%clk 0:01:40]} 22. Nxh7 {[%clk 0:02:00]}  Kxh7 {[%clk 0:01:35]} 23. Bg2+ {[%clk 0:01:53]}  Kg8 {[%clk 0:01:35]} 24. Bxb7 {[%clk 0:01:54]}  Ne3 {[%clk 0:01:36]} 25. Rdh1 {[%clk 0:01:53]}  N7f5 {[%clk 0:01:31]} 26. g4 {[%clk 0:01:45]}  Nxg4 {[%clk 0:01:31]} 27. Bd5+ {[%clk 0:01:45]}  Rf7 {[%clk 0:01:30]} 28. Rh7 {[%clk 0:01:27]}  Nge3 {[%clk 0:01:27]} 29. fxe5 {[%clk 0:01:23]}  Qxe5 {[%clk 0:01:27]} 30. Bxf7+ {[%clk 0:01:23]}  Kxf7 {[%clk 0:01:28]} 31. Nc1 {[%clk 0:01:14]}  Kg8 {[%clk 0:01:19]} 32. Qf2 {[%clk 0:01:10]}  b5 {[%clk 0:01:16]} 33. Qf3 {[%clk 0:01:07]}  bxc4 {[%clk 0:01:15]} 34. dxc4 {[%clk 0:01:08]}  Qg3 {[%clk 0:01:03]} 35. Rxg7+ {[%clk 0:01:05]}  Kxg7 {[%clk 0:01:02]} 36. Bxd4+ {[%clk 0:01:06]}  Kf7 {[%clk 0:00:57]} 37. Rh7+ {[%clk 0:01:04]}  Ke6 {[%clk 0:00:58]} 38. Qe4+ {[%clk 0:01:00]} 1-0


[Site "https://www.chess.com"]

[Event "Titled Tuesday Blitz April 4 Late 2023"]
[White "Beerdsen, Thomas"]
[Black "Vidit, Santosh Gujrathi"]
[WhiteFideId "1030108"]
[BlackFideId "5029465"]
[WhiteElo "2547"]
[BlackElo "2651"]
[Result "1-0"]
[Round "05"]
[TimeControl "180+2"]
[Date "2023.04.04"]
[WhiteClock "0:01:25"]
[BlackClock "0:00:24"]

1. e4 {[%clk 0:03:00]}  c5 {[%clk 0:02:58]} 2. Nf3 {[%clk 0:03:01]}  d6 {[%clk 0:02:58]} 3. d4 {[%clk 0:03:01]}  cxd4 {[%clk 0:02:58]} 4. Nxd4 {[%clk 0:03:02]}  Nf6 {[%clk 0:02:58]} 5. Nc3 {[%clk 0:03:02]}  a6 {[%clk 0:02:58]} 6. Rg1 {[%clk 0:03:01]}  g6 {[%clk 0:02:42]} 7. g4 {[%clk 0:03:01]}  Bg7 {[%clk 0:02:42]} 8. Be3 {[%clk 0:03:01]}  Nc6 {[%clk 0:02:35]} 9. Be2 {[%clk 0:02:55]}  O-O {[%clk 0:02:26]} 10. h4 {[%clk 0:02:47]}  Qa5 {[%clk 0:02:16]} 11. Nb3 {[%clk 0:02:45]}  Qc7 {[%clk 0:02:09]} 12. g5 {[%clk 0:02:46]}  Nd7 {[%clk 0:02:07]} 13. h5 {[%clk 0:02:44]}  b5 {[%clk 0:01:45]} 14. Rh1 {[%clk 0:02:35]}  e6 {[%clk 0:01:39]} 15. Qd2 {[%clk 0:02:22]}  Nb6 {[%clk 0:01:28]} 16. f4 {[%clk 0:02:08]}  Rd8 {[%clk 0:01:01]} 17. Bd3 {[%clk 0:02:04]}  b4 {[%clk 0:00:53]} 18. Nd1 {[%clk 0:01:59]}  a5 {[%clk 0:00:51]} 19. Qh2 {[%clk 0:01:59]}  a4 {[%clk 0:00:48]} 20. Nd2 {[%clk 0:01:59]}  a3 {[%clk 0:00:35]} 21. Rb1 {[%clk 0:01:58]}  axb2 {[%clk 0:00:35]} 22. Nxb2 {[%clk 0:01:59]}  Nd4 {[%clk 0:00:29]} 23. hxg6 {[%clk 0:01:57]}  hxg6 {[%clk 0:00:30]} 24. Bxd4 {[%clk 0:01:25]}  Bxd4 {[%clk 0:00:29]} 25. e5 {[%clk 0:01:26]}  Kf8 {[%clk 0:00:26]} 26. Qh8+ {[%clk 0:01:25]}  Ke7 {[%clk 0:00:23]} 27. Qf6+ {[%clk 0:01:26]}  Kd7 {[%clk 0:00:24]} 28. Bb5+ {[%clk 0:01:25]} 1-0


[Site "https://www.chess.com"]

[Event "Titled Tuesday Blitz April 4 Late 2023"]
[White "Sargsyan, Shant"]
[Black "Timofeev, Artyom"]
[WhiteFideId "13306766"]
[BlackFideId "4140419"]
[WhiteElo "2628"]
[BlackElo "2586"]
[Result "1-0"]
[Round "05"]
[TimeControl "180+2"]
[Date "2023.04.04"]
[WhiteClock "0:00:09"]
[BlackClock "0:00:04"]

1. Nf3 {[%clk 0:03:00]}  c5 {[%clk 0:02:58]} 2. e4 {[%clk 0:03:00]}  d6 {[%clk 0:02:57]} 3. Bb5+ {[%clk 0:02:59]}  Bd7 {[%clk 0:02:56]} 4. a4 {[%clk 0:02:59]}  Nf6 {[%clk 0:02:53]} 5. Qe2 {[%clk 0:02:56]}  Nc6 {[%clk 0:02:51]} 6. c3 {[%clk 0:02:53]}  a6 {[%clk 0:02:50]} 7. Bc4 {[%clk 0:02:52]}  Bg4 {[%clk 0:02:34]} 8. d3 {[%clk 0:02:41]}  e6 {[%clk 0:02:30]} 9. Nbd2 {[%clk 0:02:39]}  Be7 {[%clk 0:02:29]} 10. h3 {[%clk 0:02:39]}  Bh5 {[%clk 0:02:28]} 11. O-O {[%clk 0:02:39]}  O-O {[%clk 0:02:28]} 12. Bb3 {[%clk 0:02:40]}  d5 {[%clk 0:02:24]} 13. Re1 {[%clk 0:02:38]}  Re8 {[%clk 0:02:17]} 14. Bc2 {[%clk 0:02:20]}  Qc7 {[%clk 0:02:12]} 15. Nf1 {[%clk 0:02:07]}  dxe4 {[%clk 0:02:10]} 16. dxe4 {[%clk 0:02:07]}  Ne5 {[%clk 0:01:46]} 17. N1h2 {[%clk 0:02:06]}  Nfd7 {[%clk 0:01:41]} 18. g4 {[%clk 0:02:01]}  Nxf3+ {[%clk 0:01:41]} 19. Nxf3 {[%clk 0:02:02]}  Bg6 {[%clk 0:01:40]} 20. Kg2 {[%clk 0:02:02]}  c4 {[%clk 0:01:36]} 21. Nd4 {[%clk 0:01:48]}  e5 {[%clk 0:01:24]} 22. Nf5 {[%clk 0:01:46]}  Nf8 {[%clk 0:01:23]} 23. Be3 {[%clk 0:01:41]}  Ne6 {[%clk 0:01:21]} 24. Rad1 {[%clk 0:01:42]}  Bg5 {[%clk 0:01:14]} 25. h4 {[%clk 0:01:37]}  Bxe3 {[%clk 0:01:13]} 26. fxe3 {[%clk 0:01:38]}  Red8 {[%clk 0:00:56]} 27. Rd5 {[%clk 0:01:30]}  Bxf5 {[%clk 0:00:36]} 28. Rxd8+ {[%clk 0:01:25]}  Nxd8 {[%clk 0:00:30]} 29. exf5 {[%clk 0:01:25]}  b5 {[%clk 0:00:30]} 30. Be4 {[%clk 0:01:25]}  Rb8 {[%clk 0:00:30]} 31. axb5 {[%clk 0:01:23]}  Rxb5 {[%clk 0:00:30]} 32. Rd1 {[%clk 0:01:23]}  Nb7 {[%clk 0:00:26]} 33. Qd2 {[%clk 0:00:48]}  Kf8 {[%clk 0:00:25]} 34. Kh3 {[%clk 0:00:41]}  Nc5 {[%clk 0:00:23]} 35. Qc2 {[%clk 0:00:23]}  f6 {[%clk 0:00:18]} 36. g5 {[%clk 0:00:20]}  fxg5 {[%clk 0:00:18]} 37. hxg5 {[%clk 0:00:20]}  Qe7 {[%clk 0:00:17]} 38. Kg4 {[%clk 0:00:21]}  h6 {[%clk 0:00:17]} 39. f6 {[%clk 0:00:18]}  gxf6 {[%clk 0:00:17]} 40. gxh6 {[%clk 0:00:19]}  f5+ {[%clk 0:00:06]} 41. Bxf5 {[%clk 0:00:18]}  e4 {[%clk 0:00:07]} 42. Qh2 {[%clk 0:00:13]}  Nd3 {[%clk 0:00:05]} 43. Rf1 {[%clk 0:00:13]}  Ke8 {[%clk 0:00:03]} 44. Qh5+ {[%clk 0:00:10]}  Kd8 {[%clk 0:00:04]} 45. Qg5 {[%clk 0:00:10]}  Ne5+ {[%clk 0:00:04]} 46. Kh5 {[%clk 0:00:10]}  Qxg5+ {[%clk 0:00:04]} 47. Kxg5 {[%clk 0:00:11]}  Nf7+ {[%clk 0:00:04]} 48. Kg6 {[%clk 0:00:09]}  Nxh6 {[%clk 0:00:05]} 49. Kxh6 {[%clk 0:00:10]}  Rxb2 {[%clk 0:00:05]} 50. Bxe4 {[%clk 0:00:10]}  Rb3 {[%clk 0:00:05]} 51. Rc1 {[%clk 0:00:10]}  Kc7 {[%clk 0:00:06]} 52. Kg5 {[%clk 0:00:11]}  Kb6 {[%clk 0:00:06]} 53. Kf4 {[%clk 0:00:11]}  Kc5 {[%clk 0:00:06]} 54. Bg6 {[%clk 0:00:08]}  a5 {[%clk 0:00:06]} 55. Be8 {[%clk 0:00:08]}  Ra3 {[%clk 0:00:05]} 56. Ke4 {[%clk 0:00:07]}  a4 {[%clk 0:00:05]} 57. Rb1 {[%clk 0:00:07]}  Rxc3 {[%clk 0:00:05]} 58. Bxa4 {[%clk 0:00:06]}  Ra3 {[%clk 0:00:05]} 59. Bc2 {[%clk 0:00:07]}  Ra2 {[%clk 0:00:05]} 60. Bd1 {[%clk 0:00:06]}  Rd2 {[%clk 0:00:05]} 61. Ba4 {[%clk 0:00:06]}  c3 {[%clk 0:00:05]} 62. Rb5+ {[%clk 0:00:06]}  Kc4 {[%clk 0:00:05]} 63. Rb8 {[%clk 0:00:07]}  Rb2 {[%clk 0:00:03]} 64. Rxb2 {[%clk 0:00:06]}  cxb2 {[%clk 0:00:04]} 65. Bc2 {[%clk 0:00:07]}  Kc3 {[%clk 0:00:04]} 66. Bb1 {[%clk 0:00:07]}  Kd2 {[%clk 0:00:04]} 67. Kd4 {[%clk 0:00:08]}  Kc1 {[%clk 0:00:05]} 68. Bd3 {[%clk 0:00:09]}  Kd2 {[%clk 0:00:05]} 69. e4 {[%clk 0:00:09]}  b1=Q {[%clk 0:00:04]} 70. Bxb1 {[%clk 0:00:09]} 1-0


[Site "https://www.chess.com"]